Cogmind - Beta 16.1 @@@ ROGUE MODE // 2026.04.03 @ 19:15:40 Player: Lazz Result: Destroyed by P-70 Sage with Tesla Rifle Performance ------------- Evolutions (5) 2500 Regions Visited (6) 1200 Robots Destroyed (25) 125 Value Destroyed (694) 694 Prototype IDs (3) 60 Alien Tech Used (0) 0 Bonus (821) 821 TOTAL SCORE: 5400 Bonus ------- Follower Combat Kills 21 Registered with UFD 300 Met Optimus in HQ 500 Cogmind --------- Core Integrity 0/1000 Matter 202/300 Energy 99/100 System Corruption 6% Temperature Cool (0) Movement Core (50) Location -5/Factory Parts ------- > --- POWER (2) -------- (None) > --- PROPULSION (5) --- (None) > --- UTILITY (7) ------ Improved Signal Interpreter Hacking Suite > --- WEAPON (3) ------- (None) > --- INVENTORY (5) ---- Reaction Control System System Shield Scrapoid Pod Peak State ------------ > --- POWER ------------ Improved Deuterium Engine Makeshift Power Source > --- PROPULSION ------- Carbon-fiber Leg Overtuned Titanium Leg Improved Carbon-fiber Leg > --- UTILITY ---------- Experimental Heat Sink Large Storage Unit Improved Sensor Array Improved Signal Interpreter Reaction Control System Hacking Suite Hacking Suite > --- WEAPON ----------- Gauss Rifle Flak Gun Great Axe > --- INVENTORY -------- Makeshift Power Source Improved Heat Sink Experimental Sensor Array Surveybot 17 Chip Matter Filter Reaction Control System Improved Light Armor Plating Improved Light Armor Plating System Shield Scrapoid Pod Heavy Rocket Launcher DRS Beacon [Rating: 59] Favorites ----------- Power Improved Deuterium Engine Engine Improved Deuterium Engine Propulsion Aluminum Leg Treads Light Treads Leg Aluminum Leg Utility Improved Light Armor Plating Device Seismic Detector Storage Medium Storage Unit Processor Improved Signal Interpreter Hackware Hacking Suite Protection Improved Light Armor Plating Weapon Gauss Rifle Energy Gun Gatling Laser Ballistic Gun Gauss Rifle Launcher Heavy Rocket Launcher Slashing Weapon Great Axe Build | -11 -10 -10 -10 -7 -7 -5 ------- Run | Yrd Mat Min Sub Rec Scr Fac Slots Evolved 10 | . . . . . . 10 Power 1 | . . . . . . 1 Propulsion 3 | . . . . . . 3 Utility 5 | . . . . . . 5 Weapon 1 | . . . . . . 1 Parts Attached 37 | 7 . 1 5 8 6 10 Power 4 | 1 . . 1 1 1 . Engine 4 | 1 . . 1 1 1 . Core . | . . . . . . . Reactor . | . . . . . . . Propulsion 9 | 2 . . 2 1 3 1 Treads 3 | 2 . . . . 1 . Leg 6 | . . . 2 1 2 1 Wheel . | . . . . . . . Hover . | . . . . . . . Flight . | . . . . . . . Utility 14 | 2 . 1 . 3 1 7 Device 6 | 1 . 1 . 1 . 3 Storage 3 | 1 . . . 1 1 . Processor 1 | . . . . . . 1 Hackware 2 | . . . . . . 2 Protection 2 | . . . . 1 . 1 Artifact . | . . . . . . . Weapon 10 | 2 . . 2 3 1 2 Energy Gun 1 | . . . . 1 . . Energy Cannon . | . . . . . . . Ballistic Gun 7 | 2 . . 2 2 1 . Ballistic Cannon . | . . . . . . . Launcher 1 | . . . . . . 1 Special Weapon . | . . . . . . . Impact Weapon . | . . . . . . . Slashing Weapon 1 | . . . . . . 1 Piercing Weapon . | . . . . . . . Special Melee Weapon . | . . . . . . . Unidentified Prototypes 2 | . . 1 . . . 1 Parts Lost 19 | . . . 4 4 . 11 Power 3 | . . . 1 . . 2 Propulsion 7 | . . . 2 2 . 3 Utility 4 | . . . 1 . . 3 Weapon 5 | . . . . 2 . 3 Highest Loss Streak 10 | . . . 2 3 . 10 To Critical Strikes 1 | . . . 1 . . . Average Backups 8 | 2 6 8 7 6 9 10 Power . | . 1 . . . . . Propulsion . | 1 2 3 2 . . . Utility 4 | . . . 1 3 5 7 Weapon 3 | . 2 4 4 3 3 1 Tool/Special . | . . . . . . . Unused Backups 16 | . 1 1 1 2 3 8 Power 2 | . . 1 . . . 1 Propulsion . | . . . . . . . Utility 7 | . . . . . 1 6 Weapon 6 | . 1 . 1 2 2 . Tool/Special 1 | . . . . . . 1 Average Slot Usage (%) 93 | . 100 100 85 90 97 81 Engine 13 | . 14 14 9 13 14 10 Treads 8 | . 28 28 18 . 8 . Leg 15 | . . . . 23 17 16 Device 5 | . 14 14 14 6 . 13 Storage 12 | . 14 14 14 14 14 4 Hackware 1 | . . . . . . 8 Protection 8 | . . . . 3 14 4 Energy Gun 7 | . . . . 10 10 . Ballistic Gun 17 | . 28 28 28 16 16 10 Peak Build Rating 59 | 7 7 15 10 20 29 59 Average Rating 22 | 5 7 7 8 17 23 54 On Entrance 11 | . 7 7 8 8 19 29 Avg Prop Armor Cover (%) 5 | . . . . . 6 4 Naked Turns . | . . . . . . . Heaviest Build 53 | 13 13 13 17 31 41 53 Greatest Support 52 | 40 40 40 40 20 33 52 Greatest Overweight (x) 3 | 2 . . . 3 3 1 Average Overweight (x) . | . . . . 1 1 . Largest Inventory Capacity 15 | 8 8 8 8 10 15 15 Average Capacity 11 | 7 8 8 8 9 11 14 Most Carried 15 | 4 8 8 8 9 15 15 Average Carried 9 | 2 6 7 7 6 10 12 Final Capacity 15 | 8 8 8 8 10 15 5 Final Carried 14 | 4 8 8 6 7 14 4 Class Distribution -------------------- 88% | Mutant 11% | Derelict-Mutant Dominant Class ---------------- Mutant | -10/Materials Mutant | -10/Mines Mutant | -10/Subcaves Mutant | -7/Recycling Mutant | -7/Scraptown Derelict-Mutant | -5/Factory Resources | -11 -10 -10 -10 -7 -7 -5 ----------- Run | Yrd Mat Min Sub Rec Scr Fac Matter Collected 786 | 326 . 39 185 147 66 23 Remotely . | . . . . . . . Salvage Created 833 | 163 . 39 271 263 . 97 Parts 56 | 13 . 8 17 10 . 8 Haulers Intercepted . | . . . . . . . Recyclers Shooed 1 | . . . . 1 . . Parts Field Recycled . | . . . . . . . Retrieved Matter . | . . . . . . . Parts Self-Destructed 7 | . . . 7 . . . Prevented . | . . . . . . . Parts Restored . | . . . . . . . Kills | -11 -10 -10 -10 -7 -7 -5 ------- Run | Yrd Mat Min Sub Rec Scr Fac Combat Hostiles Destroyed 18 | . . 3 9 4 . 2 Guns 16 | . . 3 9 4 . . AOE 2 | . . . . . . 2 Classes Destroyed 8 | 3 . 1 2 . . 2 Worker 2 | 2 . . . . . . Tunneler 3 | 3 . . . . . . Recycler 1 | 1 . . . . . . Operator 1 | . . . . . . 1 Swarmer 7 | . . 3 4 . . . Sentry 5 | . . . 1 4 . . Programmer 2 | . . . . . . 2 Subdweller 4 | . . . 4 . . . Best Kill Streak 4 | 4 . 3 4 2 . 2 Combat Bots Only 4 | . . 3 4 2 . 2 Max Kills in Single Turn 1 | 1 . 1 1 1 . 1 Gunslinging . | . . . . . . . Exploded 1 | . . . . . . 1 Melee . | . . . . . . . Uniques/NPCs Destroyed . | . . . . . . . Combat | -11 -10 -10 -10 -7 -7 -5 -------- Run | Yrd Mat Min Sub Rec Scr Fac Hostile Shots Fired 389 | . . 11 87 105 . 186 Missed 170 | . . 2 29 43 . 96 Hits 219 | . . 9 58 62 . 90 Projectile 219 | . . 9 58 62 . 90 AOE 5 | . . . 2 . . 3 Critical Strikes 2 | . . . 1 . . 1 Damage Taken 3216 | . . 77 757 453 . 1929 Core 1225 | . . 6 126 74 . 1019 Absorbed by Shields . | . . . . . . . Core Remaining (%) 58 | 100 . . . . 17 . Volleys Fired 67 | 12 3 3 30 15 . 4 Largest 2 | 2 2 2 2 2 . 2 Hottest 108 | 40 40 40 55 108 . 56 Shots Fired 124 | 24 6 6 54 29 . 5 Gun 121 | 24 6 6 54 29 . 2 Cannon . | . . . . . . . Launcher 3 | . . . . . . 3 Special . | . . . . . . . Kinetic 113 | 24 6 6 54 21 . 2 Thermal 8 | . . . . 8 . . Explosive 3 | . . . . . . 3 Electromagnetic . | . . . . . . . Robot Hit Streak 23 | 4 1 3 15 23 . 2 Robot Miss Streak 3 | 1 3 1 3 1 . 1 Penetration Max . | . . . . . . . Secondary Targets . | . . . . . . . Shots Hit Robots 84 | 14 2 3 40 22 . 3 Core Hits 46 | 7 . 3 14 13 . 9 Critical Kills 2 | . . . 1 1 . . Critical Parts Destroyed 1 | . . . . 1 . . Critical Strikes 3 | . . . 1 2 . . Destroy 3 | . . . 1 2 . . Melee Attacks 12 | . . . . . . 12 Impact . | . . . . . . . Slashing 12 | . . . . . . 12 Piercing . | . . . . . . . Sneak Attacks 1 | . . . . . . 1 Combat Hostiles . | . . . . . . . Follow-up Attacks . | . . . . . . . Damage Inflicted 1621 | 169 28 41 601 489 . 293 Guns 1328 | 169 28 41 601 489 . . Cannons . | . . . . . . . Explosions 183 | . . . . . . 183 Melee 110 | . . . . . . 110 Ramming . | . . . . . . . Kinetic 1078 | 169 28 41 601 239 . . Thermal 250 | . . . . 250 . . Explosive 183 | . . . . . . 183 Electromagnetic . | . . . . . . . Impact . | . . . . . . . Slashing 110 | . . . . . . 110 Piercing . | . . . . . . . Highest Corruption 5 | . . . . 1 . 5 Average Corruption 1 | . . . . 1 . 3 Corruption Purged . | . . . . . . . Corruption Blocked . | . . . . . . . Effects 6 | . . . . 5 . 1 Matter Fused 2 | . . . . 1 . 1 Energy Discharges 1 | . . . . 1 . . Data Loss (minor) 2 | . . . . 2 . . Alerts 1 | . . . . 1 . . Overload Shots . | . . . . . . . Overflow Damage . | . . . . . . . Projectiles . | . . . . . . . Explosions . | . . . . . . . Melee . | . . . . . . . Knockbacks . | . . . . . . . Impact . | . . . . . . . Kinetic . | . . . . . . . Secondary . | . . . . . . . Self-Inflicted Damage . | . . . . . . . Shots . | . . . . . . . Rammed . | . . . . . . . Targets Rammed . | . . . . . . . Kicked . | . . . . . . . Crushed . | . . . . . . . Highest Temperature 224 | . . . . 224 . . Average Temperature 76 | . . . . 76 . . Received Heat Transfer 513 | . . . 135 120 . 258 Siege Activations . | . . . . . . . Martial Activations . | . . . . . . . Shielding Activations . | . . . . . . . Robots Disrupted . | . . . . . . . Combat Hostiles . | . . . . . . . Robots Corrupted . | . . . . . . . Combat Hostiles . | . . . . . . . Parts Fried . | . . . . . . . Impact Corruptions . | . . . . . . . Robots Melted . | . . . . . . . Combat Hostiles . | . . . . . . . Parts Melted 1 | . . . . 1 . . Heat Transferred 575 | . . . . 575 . . Parts Sabotaged . | . . . . . . . Parts Stolen . | . . . . . . . Parts Stripped . | . . . . . . . Power Chain Reactions . | . . . . . . . Alert | -11 -10 -10 -10 -7 -7 -5 ------- Run | Yrd Mat Min Sub Rec Scr Fac Maximum Alert Level 1 | . . . . . . 1 Low Security (%) 99 | 100 100 100 . 100 . 99 Level 1 . | . . . . . . . Level 2 . | . . . . . . . Level 3 . | . . . . . . . Level 4 . | . . . . . . . Level 5 . | . . . . . . . High Security . | . . . . . . . Max Security . | . . . . . . . Peak Influence 238 | 10 . 94 . 189 . 238 Initial 57 | . . . . 57 . . Average 32 | 1 . 36 . 52 . 3 Influence Increases 1066 | 30 . 174 175 392 . 295 Destroy 0b10 Robot/C 340 | . . 120 100 80 . 40 Destroy 0b10 Robot/NC 35 | 30 . . . . . 5 Destroy Leader 30 | . . 20 . . . 10 Allied During Kill 4 | . . 4 . . . . Successful Hack 15 | . . . . 12 . 3 Select Force Hacks 300 | . . . . 300 . . Disable Machine 15 | . . . . . . 15 Destroy Structure 72 | . . . . . . 72 Lose Combat Pursuer 255 | . . 30 75 . . 150 Influence Decreases 828 | 30 . 148 82 495 16 57 Entered New Map 92 | . . . 14 62 16 . Time Decay 664 | 30 . 148 36 403 . 47 Lost Part 60 | . . . 20 30 . 10 Lost Ally 12 | . . . 12 . . . Squads Dispatched 8 | . 2 1 . . . 5 Investigation 5 | . 1 . . . . 4 Extermination 1 | . . . . . . 1 Reinforcement 1 | . 1 . . . . . Assault 1 | . . 1 . . . . Garrison . | . . . . . . . Intercept . | . . . . . . . Searches Triggered . | . . . . . . . Construction Impeded . | . . . . . . . Haulers Reinforced . | . . . . . . . Active Scanning Responses . | . . . . . . . Cargo Convoy Interrupts 1 | . . . . . . 1 Stealth | -11 -10 -10 -10 -7 -7 -5 --------- Run | Yrd Mat Min Sub Rec Scr Fac Distress Signals . | . . . . . . . Communications Jammed . | . . . . . . . Distress Signals . | . . . . . . . Times Spotted 54 | . 2 8 13 4 . 27 Peak Tracking Total 23 | . 1 3 6 2 . 23 Tactical Retreats 6 | . . 1 3 . . 2 Traps | -11 -10 -10 -10 -7 -7 -5 ------- Run | Yrd Mat Min Sub Rec Scr Fac Traps Triggered 1 | . 1 . . . . . Indirectly . | . . . . . . . Trap Hack Attempts . | . . . . . . . Triggered . | . . . . . . . Disarmed . | . . . . . . . Reprogrammed . | . . . . . . . Reused . | . . . . . . . Traps Extracted . | . . . . . . . Installed 1 | . . 1 . . . . Triggered . | . . . . . . . Machines | -11 -10 -10 -10 -7 -7 -5 ---------- Run | Yrd Mat Min Sub Rec Scr Fac Machines Disabled 1 | . . . . . . 1 Max in Single Turn 1 | . . . . . . 1 Machines Repaired . | . . . . . . . Machines Dismantled . | . . . . . . . Machines Sabotaged . | . . . . . . . Overloaded Fab Kills . | . . . . . . . Hacking | -11 -10 -10 -10 -7 -7 -5 --------- Run | Yrd Mat Min Sub Rec Scr Fac Machines Accessed 26 | . . . . 15 5 6 Terminals 7 | . . . . 5 . 2 Fabricators 2 | . . . . . . 2 Repair Stations . | . . . . . . . Recycling Units 12 | . . . . 10 . 2 Scanalyzers . | . . . . . . . Garrison Access . | . . . . . . . Total Hacks 75 | . . . . 31 30 14 Successful 56 | . . . . 15 30 11 Failed 19 | . . . . 16 . 3 Catastrophic 2 | . . . . 2 . . Database Lockouts . | . . . . . . . Manual 21 | . . . . 18 . 3 Terminals 18 | . . . . 15 . 3 Fabricators 5 | . . . . . . 5 Repair Stations . | . . . . . . . Recycling Units 22 | . . . . 16 . 6 Scanalyzers . | . . . . . . . Garrison Access . | . . . . . . . Terminal Hacks 34 | . . . . 2 30 2 Record 30 | . . . . . 30 . Part Schematic 1 | . . . . 1 . . Emergency Access Points 1 | . . . . . . 1 Recycling Unit Index 1 | . . . . . . 1 Zone Layout 1 | . . . . 1 . . Fabricator Hacks 2 | . . . . . . 2 Load Schematic 1 | . . . . . . 1 Build 1 | . . . . . . 1 Repair Station Hacks . | . . . . . . . Recycling Unit Hacks 6 | . . . . 2 . 4 Process 1 | . . . . . . 1 Report Inventory 2 | . . . . . . 2 Retrieve Matter 1 | . . . . . . 1 Retrieve Components 2 | . . . . 2 . . Scanalyzer . | . . . . . . . Garrison Access Hacks . | . . . . . . . Unauthorized Hacks 14 | . . . . 11 . 3 Terminals 1 | . . . . . . 1 Sabotage 1 | . . . . . . 1 Fabricators . | . . . . . . . Repair Stations . | . . . . . . . Recycling Units 13 | . . . . 11 . 2 Recyclers 1 | . . . . 1 . . Tunnel 10 | . . . . 10 . . Fedlink 2 | . . . . . . 2 Scanalyzers . | . . . . . . . Garrison Access . | . . . . . . . Data Cores Recovered . | . . . . . . . Used . | . . . . . . . Hacking Detections 11 | . . . . 7 . 4 Full Trace Events 4 | . . . . 3 . 1 Feedback Events 1 | . . . . 1 . . Corruption 1 | . . . . 1 . . Feedback Blocked . | . . . . . . . Robot Schematics Acquired . | . . . . . . . Robots Built . | . . . . . . . Authchips . | . . . . . . . Time . | . . . . . . . Total Robot Build Rating . | . . . . . . . Part Schematics Acquired 1 | . . . . 1 . . Parts Built 1 | . . . . . . 1 Authchips . | . . . . . . . Time 106 | . . . . . . 106 Total Part Build Rating 6 | . . . . . . 6 Part Studies Acquired . | . . . . . . . Parts Repaired . | . . . . . . . Time . | . . . . . . . Parts Recycled . | . . . . . . . Recycled Matter 10 | . . . . . . 10 Retrieved Matter 10 | . . . . . . 10 Retrieved Components 1 | . . . . 1 . . Parts Scanalyzed . | . . . . . . . Part Schematics Acquired . | . . . . . . . Parts Damaged . | . . . . . . . Bothacking | -11 -10 -10 -10 -7 -7 -5 ------------ Run | Yrd Mat Min Sub Rec Scr Fac Used RIF Installer . | . . . . . . . Robots Hacked . | . . . . . . . Non-combat . | . . . . . . . Combat . | . . . . . . . Robot Hacks Applied . | . . . . . . . Relay Couplers Released . | . . . . . . . Fabnet Peak Effective % . | . . . . . . . Robots Rewired . | . . . . . . . Allies Hacked . | . . . . . . . Hacks Repelled . | . . . . . . . Allies | -11 -10 -10 -10 -7 -7 -5 -------- Run | Yrd Mat Min Sub Rec Scr Fac Total Allies 1 | . . 1 . . . . Largest Group 1 | . . 1 1 . . . Highest-Rated Group 31 | . . 31 31 . . . Highest-Rated Ally 31 | . . 31 31 . . . Initial UFD Resources 38 | . . . . . . 38 Total Orders . | . . . . . . . Ally Attacks 10 | . . 9 1 . . . Total Damage 146 | . . 146 . . . . Kills 3 | . . 3 . . . . Allies Corrupted . | . . . . . . . Allies Melted . | . . . . . . . Intel | -11 -10 -10 -10 -7 -7 -5 ------- Run | Yrd Mat Min Sub Rec Scr Fac Active Infowar (turns) 1622 | 43 120 506 494 . . 459 Sensors 459 | . . . . . . 459 Seismic 1163 | 43 120 506 494 . . . Robot Analysis Total . | . . . . . . . Derelict Logs Recovered 3 | . . 1 1 . 1 . Drone Launches . | . . . . . . . Drone Recoveries . | . . . . . . . Exploration | -11 -10 -10 -10 -7 -7 -5 ------------- Run | Yrd Mat Min Sub Rec Scr Fac Turns Passed 6631 | 145 120 510 500 1468 3073 815 Spaces Moved 3094 | 64 66 290 239 692 1345 398 Core 64 | 11 . . . . . 53 Treads 1439 | 53 66 290 230 . 800 . Legs 1591 | . . . 9 692 545 345 Wheels . | . . . . . . . Hover . | . . . . . . . Flight . | . . . . . . . Fastest Speed 50 | 50 160 160 120 120 120 50 Average Speed 197 | 148 160 160 158 201 224 165 Slowest Speed 330 | 160 160 160 160 330 330 190 Overloaded Moves . | . . . . . . . Propulsion Burnouts . | . . . . . . . Robots Hopped . | . . . . . . . Potential Cave-ins 2 | . . . 2 . . . Cave-ins Triggered . | . . . . . . . Exploration Rate (%) 42 | 4 24 63 14 95 84 10 Regions Visited 6 Branch Regions 4 Pre-discovered Areas 13 | . . 1 1 10 . 1 Known Exits Taken . | . . . . . . . Unknown Exits Taken 6 | 1 1 1 1 1 1 . Scrap Searched 4 | . . . . . 4 . Spaces Dug 9 | . . . . . . 9 Terrain Destroyed 49 | . . . . 1 . 48 Melee 9 | . . . . . . 9 Projectile 1 | . . . . 1 . . AOE 39 | . . . . . . 39 Terrain Rammed . | . . . . . . . Walls Destroyed . | . . . . . . . Machines Disabled . | . . . . . . . Actions | -11 -10 -10 -10 -7 -7 -5 --------- Run | Yrd Mat Min Sub Rec Scr Fac Total 3469 | 86 75 332 308 739 1401 528 Wait 198 | . 1 29 30 16 29 93 Move 3088 | 63 65 289 238 691 1344 398 Hop . | . . . . . . . Pick Up 34 | 4 5 3 1 6 10 5 Fast Attach 23 | 7 . 2 1 3 4 6 Attach 11 | . . . 2 3 1 5 Detach . | . . . . . . . Swap 6 | . . . 2 2 2 . Drop 27 | . 1 5 4 3 9 5 Fire 67 | 12 3 3 30 15 . 4 Melee 12 | . . . . . . 12 Ram . | . . . . . . . Kick . | . . . . . . . Crush . | . . . . . . . Escape Stasis . | . . . . . . . Rewire 2 | . . . . . 2 . Trap 1 | . . 1 . . . . Miscellaneous . | . . . . . . . Route ------- -11/Scrapyard -10/Materials -10/Mines (discovered 2 exits: [*Mat] / [*Sub]) -10/Subcaves -7/Recycling (discovered 2 exits: *Fac / *Scr) -7/Scraptown -5/Factory History --------- Turn | Location | Event 15 | -11/Scrapyard | Discovered new exit (range 16) 146 | -11/Scrapyard | Entered Materials 240 | -10/Materials | Discovered new exit (range 16) 266 | -10/Materials | Entered Mines 303 | -10/Mines | Learned location of Mines (-9) 307 | -10/Mines | Build established: Mutant 555 | -10/Mines | Met a Derelict testing a Signal Generator 557 | -10/Mines | Discovered new exit (range 5) 668 | -10/Mines | Found a damaged Exp. Sensor Array with a note attached 671 | -10/Mines | Found Prototype Device 671 | -10/Mines | Identified Exp. Sensor Array 705 | -10/Mines | Found a hidden stash of uninstalled traps 757 | -10/Mines | Discovered new exit (range 11) 776 | -10/Mines | Entered Subcaves 776 | -10/Subcaves | Accompanied by 1 ally 777 | -10/Subcaves | Approached by a straggling Scientist 1140 | -10/Subcaves | Shifting Twisted Machinery released Mak. Light Armor Plating 1156 | -10/Subcaves | Shifting Twisted Machinery released Mak. Spear 1268 | -10/Subcaves | Discovered new exit (range 8) 1273 | -10/Subcaves | Core integrity fell below 50% 1276 | -10/Subcaves | Entered Recycling 1660 | -7/Recycling | Lost 3 parts (1n2w) 2277 | -7/Recycling | Core integrity fell below 20% 2500 | -7/Recycling | Discovered new exit (range 9) 2661 | -7/Recycling | Scanned before Scraplab entrance 2708 | -7/Recycling | Entered Scraplab 2737 | -7/Recycling | Discovered new exit (range 2) 2744 | -7/Recycling | Entered Scraptown 2744 | -7/Scraptown | System corruption cleaned by C-Scrubber 2956 | -7/Scraptown | Received an X-ray algorithm 3246 | -7/Scraptown | Scanned Subdweller tech in exchange for log data 3253 | -7/Scraptown | Learned Factory terminal intel 3323 | -7/Scraptown | Visited Awakened 3424 | -7/Scraptown | Visited IN-MT5's Study 3816 | -7/Scraptown | Heard Great Nut preacher, LISTEN AND RECITE! 4122 | -7/Scraptown | Visited Cyclists 4155 | -7/Scraptown | Visited Symbiants 4227 | -7/Scraptown | Visited UFD Registry 4227 | -7/Scraptown | Registered with UFD as "Bulletskull" 4304 | -7/Scraptown | Visited Chapter 10 4391 | -7/Scraptown | Visited Scrapoid Research Area 4465 | -7/Scraptown | Visited Curators Association 4807 | -7/Scraptown | Visited Scrapoid Pod Storage 4819 | -7/Scraptown | Found Scrapoid Pod 4887 | -7/Scraptown | Visited Derelict Rescue Squad 4925 | -7/Scraptown | Found DRS Beacon 4967 | -7/Scraptown | Visited DA-N13 Charitable Foundation 4977 | -7/Scraptown | Found DCF Scrap (30 items) 5055 | -7/Scraptown | Visited Cartography Club 5083 | -7/Scraptown | Found Surveybot 17 Chip 5274 | -7/Scraptown | Visited Scrap Suit Storage 5304 | -7/Scraptown | Visited Abandonware Association 5350 | -7/Scraptown | Learned abandonware demo "MELTYB.EXE" 5401 | -7/Scraptown | Visited LU-1G1's Boring Crew 5513 | -7/Scraptown | Entered Cyclist Reading Room 5700 | -7/Scraptown | Met Optimus 5700 | -7/Scraptown | Accepted into 0bPrime 5798 | -7/Scraptown | Discovered new exit (range 5) 5817 | -7/Scraptown | Entered Factory 5817 | -5/Factory | Evolved 10 slots: Power x1, Propulsion x3, Utility x5, Weapon x1 5818 | -5/Factory | Loaded intel: 26 terminal locations 6117 | -5/Factory | Build established: Derelict-Mutant 6286 | -5/Factory | Loaded intel: 8 recycling unit locations 6415 | -5/Factory | Fabricated Adv. Hacking Suite? 6482 | -5/Factory | Learned location of Protoforge (-2) 6594 | -5/Factory | Cargo convoy interrupted 6598 | -5/Factory | Core integrity fell below 50% 6602 | -5/Factory | Core integrity fell below 20% 6630 | -5/Factory | Lost 10 parts (2p3n3u2w) 6632 | -5/Factory | Destroyed by P-70 Sage with Tesla Rifle Last Messages --------------- 06596_ H-66 Slayer unfolds itself. 06596_ P-70 Sage unfolds itself. 06596_ E-15 Imp unfolds itself. 06597_ U-05 Engineer lays Concrete. 06597_ Penetrated by Slug. 06597_ E-15 Imp destroyed. 06598_ U-05 Engineer builds a Wall. 06598_ Penetrated by Slug. 06599_ Hacking Suite destroyed. 06600_ U-05 Engineer lays Concrete. 06600_ P-70 Sage resets H-66 Slayer, system corruption cleaned. 06601_ Penetrated by Slug. 06602_ Slug penetrates Wall. 06606_ K-01 Serf collects debris. 06622_ System corrupted: Matter fused (-5). 06626_ P-70 Sage destroyed. 06630_ Hvy. Rocket Launcher destroyed. 06631_ U-05 Engineer lays Concrete. 06632_ U-05 Engineer builds a Wall. Map ----- +----------------------------------------------------+ | ???????# #???????# #??????????? | | ???????# #???????# #??????????? | | ?????###+#######?# #??????????? | | ?????# #?# #??????????? | | ?????# ] #?# #??????????? | | ?????# #?# #??????????? | | ?????# !![ [ #?# #??????????? | | ?????# ![[ #?# #??????????? | | ?????# ![[ #?# #??????????? | | ?????# #?# ##?????????? | | ?????# #? ## ?????? | | ?????#### p # ????? | | ??????## % ????? | | ??????# ????? | | ??????? T ????? | | ??????? p ????? | | ???????? ????? | | ???????? #u ????? | | ????????? [[ # # T##?????? | | ????????? ## ###?????????? | | ?????????? #? #???????????? | | ?????????# #? #???????????? | | ########### #??? #???????????? | | # ! "# #??? #???????????? | | # """ ## #???? #???????????? | | # """ ## @ #???? #???????????? | | # """ ## #?? ? ???????????? | | # ######### ??? #??????????? | | # """ # ??????????????????? | | # """"" # ???????????????????? | | # """"" + ?????????????????????? | | # # #??????????????????????? | | ?#######"# ##?????????????????????? | | ???????## #?????????????????????? | | ????????# #?????????????????????? | | ????????# #?????????????????????? | | ????????# #?????????????????????? | | ????????# #?????????????????????? | | ??######### ###?????????????????????? | | ? # #???????????????????????? | | ???"""""" # #########???????????????? | | ???"""""" # +???????????????? | | ??""""""" # ####????????????????? | | # """"""" # #???????????????????? | | # # #???????????????????? | | # """"""" # #???????????????????? | | ??""""""" + #???????????????????? | | ??""""""" # #???????????????????? | | # """"""" # #???????????????????? | | # # #???????????????????? | +----------------------------------------------------+ Best States ------------- Heat Dissipation 66 Energy Generation 26 Energy Capacity 360 Matter Stores 300 Matter Capacity 300 Sight Range 16 Robot Scan Range 15 Terrain Scan Density 10 Armor Coverage 300 Evasion (%) 63 Recoil Reduction 2 Offensive Hacking 20 Item Schematics ----------------- Adv. Hacking Suite | -7/Recycling | Hacked Robot Schematics ------------------ None Fabricated ------------ Adv. Hacking Suite | x1 | -5/Factory Repaired ---------- Nothing Studied --------- None Alien Tech Used ----------------- None Achievements -------------- None Challenges ------------ None Game ------ Seed HelicalFlakExtrapolator Manual? 0 Play Time 00:31:14 Cumulative 148.4 hours Start 2026.04.03 @ 18:08:24 End 2026.04.03 @ 19:15:40 Sessions 5 Manual Loads 0 Difficulty Rogue Special Mode None Game No. 218 Rogue 218 Adventurer 0 Explorer 0 Win Type - Total 1 Types 1/0/0/0/0/0/0/0/0/0 Lore% 66 Gallery% 57 Achievement% 43 Wizard Run 0 Options --------- Layout 2 ASCII 0 Keyboard 0 Movement Mouse Keybinds 0 Fullscreen 1 Font 24/Smallcaps Map View 50x44 Zoom Use 0% Tactical HUD 1 Map Filters NONE Filters NONE Steam 1 RUN: b43d59f7-0f93-434b-b568-5ae81b20a4d5